bitfinex/quotes_ETHUSD_20240910
["timestamp","ask_amount","ask_price","bid_price","bid_amount"]
[1725978782578,6.01940749,2339.9,2339.8,0.0467234]
[1725978782784,9.01940749,2339.9,2339.8,0.00177419]
[1725978783739,0.97740749,2339.9,2339.8,0.00177419]
[1725978784248,0.09703759,2339.9,2339.8,0.00177419]
[1725978784494,5.13903759,2339.9,2339.8,0.00177419]
[1725978784796,10.57113759,2339.9,2339.8,0.00177419]
[1725978785002,11.27792075,2339.9,2339.8,0.00177419]
[1725978785289,13.22741768,2339.9,2339.8,6.768e-05]
[1725978785450,5.85576239,2339.9,2339.8,6.768e-05]
[1725978785652,3.64703759,2339.9,2339.8,6.768e-05]
[1725978785852,0.09703759,2339.9,2339.8,6.768e-05]
[1725978786081,0.09703759,2340.2,2339.8,6.768e-05]
[1725978788595,0.09703759,2340.6,2339.9,2.3354]
[1725978788892,0.09703759,2340.6,2340.1,2.3354]
[1725978789110,1.33453601,2341.4,2340.1,2.3354]
[1725978789111,0.09703759,2341.1,2340.1,5.3354]
[1725978789248,0.09703759,2341.1,2340.2,3.0]
[1725978789453,5.3815923,2341.0,2340.1,2.3354]
[1725978789682,0.80455089,2340.9,2340.1,2.3354]
[1725978789897,0.80455089,2340.9,2339.8,6.768e-05]
[1725978789898,8.80369897,2340.7,2339.8,2.36296768]
[1725978790098,0.80465327,2340.6,2339.8,2.36296768]
[1725978790392,0.80465327,2340.6,2339.8,6.768e-05]
[1725978790393,2.75579928,2340.6,2339.8,6.768e-05]
[1725978790688,5.20129127,2340.3,2339.8,6.768e-05]
[1725978790889,1.4584987,2340.2,2339.8,6.768e-05]
[1725978791095,0.75062032,2340.2,2339.8,6.768e-05]
[1725978791262,0.09703759,2340.2,2339.9,2.4634]
[1725978791451,0.09703759,2340.2,2339.8,6.768e-05]
[1725978792452,0.55,2340.1,2339.8,6.768e-05]
[1725978792652,0.09703759,2340.0,2339.8,6.768e-05]
[1725978793347,0.55,2339.9,2339.8,6.768e-05]
[1725978793551,3.81147118,2340.0,2339.8,6.768e-05]
[1725978793793,0.81147118,2340.0,2339.8,6.768e-05]
[1725978793993,0.09703759,2340.0,2339.8,6.768e-05]
[1725978795185,0.09703759,2340.1,2339.8,6.768e-05]
[1725978795711,0.09703759,2340.5,2339.8,6.768e-05]
[1725978796011,0.91799548,2340.5,2339.8,6.768e-05]
[1725978796607,1.80758778,2340.5,2339.8,6.768e-05]
[1725978796919,2.66347659,2340.4,2339.8,6.768e-05]
[1725978797066,0.09703759,2340.3,2339.8,6.768e-05]
[1725978797601,0.41124997,2340.3,2339.8,6.768e-05]
[1725978797773,0.09703759,2340.2,2339.8,6.768e-05]
[1725978798168,0.71008532,2340.1,2339.8,6.768e-05]
[1725978798374,0.09703759,2340.0,2339.8,6.768e-05]
[1725978800219,0.98662989,2340.0,2339.8,6.768e-05]
[1725978800384,1.21874648,2340.0,2339.8,6.768e-05]
[1725978800585,0.09703759,2340.0,2339.8,6.768e-05]
[1725978801268,0.98662989,2340.1,2339.8,6.768e-05]
[1725978801719,0.71172221,2340.0,2339.8,6.768e-05]
[1725978801884,0.09703759,2339.9,2339.8,6.768e-05]
[1725978802616,1.33453601,2340.1,2339.8,2.31526768]
[1725978802617,0.98662989,2340.1,2339.8,2.31526768]
[1725978802866,0.09703759,2340.1,2339.8,2.54679445]
[1725978803020,0.09703759,2340.1,2339.8,2.31526768]
[1725978803229,0.98662989,2340.2,2339.8,2.31526768]
[1725978803566,0.71261227,2340.1,2339.8,2.31526768]
[1725978803736,0.98662989,2340.2,2339.8,2.85534137]
[1725978803955,0.7125933,2340.1,2339.9,3.0]
[1725978804155,0.8895923,2340.2,2339.9,3.0]
[1725978804336,0.09703759,2340.4,2339.9,3.0]
[1725978804337,0.8895923,2340.4,2340.0,2.4006666]
[1725978804677,0.8895923,2340.4,2340.0,2.3152]
[1725978804678,2.67137166,2340.4,2340.0,2.3152]
[1725978804886,0.8895923,2340.4,2340.0,3.11468096]
[1725978805068,0.8895923,2340.4,2340.1,3.0]
[1725978805401,2.67137448,2340.4,2340.1,3.0]
[1725978805683,0.8895923,2340.5,2340.2,2.4575]
[1725978805867,0.8895923,2340.4,2340.2,2.4575]
[1725978806069,0.8895923,2340.5,2340.2,2.4575]
[1725978806289,0.8895923,2340.5,2340.3,2.338]
[1725978806440,0.8895923,2340.9,2340.5,2.0]
[1725978806648,0.8895923,2341.0,2340.6,2.338]
[1725978806876,0.98662989,2340.9,2340.6,2.338]
[1725978807184,0.8895923,2341.1,2340.7,0.07385025]
[1725978807342,1.33453601,2341.2,2340.8,2.4536]
[1725978807343,0.8895923,2341.2,2340.8,2.4536]
[1725978807544,1.33453601,2341.3,2340.8,2.4536]
[1725978807545,2.22412831,2341.3,2340.9,0.36271056]
[1725978807884,0.8895923,2341.3,2340.9,0.36271056]
[1725978808043,0.8895923,2341.3,2340.8,2.4536]
[1725978808044,0.09703759,2341.2,2340.8,2.4536]
[1725978808472,0.98662989,2341.2,2340.8,2.4536]
[1725978808780,0.71195529,2341.1,2340.8,2.4536]
[1725978808949,0.99435881,2341.3,2340.8,2.4536]
[1725978809157,0.00772892,2341.3,2340.9,0.08542939]
[1725978809457,0.00772892,2341.3,2341.0,2.3388]
[1725978810345,0.00772892,2341.3,2341.1,0.08542425]
[1725978810539,0.00772892,2341.3,2341.2,2.4748]
[1725978810784,0.00772892,2341.3,2341.2,5.4748]
[1725978811558,0.00772892,2341.3,2340.9,2.4748]
[1725978812652,0.00772892,2341.3,2340.2,2.4748]
[1725978812871,1.60776023,2341.3,2340.2,2.4748]
[1725978813080,0.09703759,2341.2,2340.4,2.4748]
[1725978813392,0.09703759,2341.2,2340.4,2.73082498]
[1725978813881,0.09703759,2341.2,2340.5,0.08544467]
[1725978814103,0.10476651,2341.3,2340.4,4.73082498]
[1725978814410,0.32795223,2341.3,2340.5,0.4730825]
[1725978814577,0.99435881,2341.3,2340.4,4.4748]
[1725978814980,0.99435881,2341.3,2340.5,3.0]
[1725978815304,0.99435881,2341.3,2340.4,2.4748]
[1725978815514,0.47823948,2341.2,2340.4,2.4748]
[1725978815673,0.99435881,2341.3,2340.5,0.08544713]
[1725978815674,0.09703759,2341.1,2340.5,0.08544713]
[1725978815859,0.09703759,2341.1,2340.4,7.4748]
[1725978816200,0.09703759,2341.1,2340.4,2.4748]
[1725978816501,0.8895923,2340.9,2340.0,2.4185]
[1725978816656,0.09703759,2340.8,2340.0,2.4185]
[1725978816859,0.98662989,2340.8,2340.0,2.4185]
[1725978817057,0.32915418,2340.7,2340.0,2.4185]
[1725978817287,0.09703759,2340.7,2339.5,2.4036]
[1725978817468,0.09703759,2340.7,2339.6,0.08547382]
[1725978817469,0.98662989,2340.7,2339.6,0.08547382]
[1725978817810,0.8895923,2340.5,2339.5,2.4036]
[1725978817988,0.09703759,2340.4,2339.5,2.4036]
[1725978818854,0.09703759,2340.4,2339.6,0.08548076]
[1725978819291,0.09703759,2340.6,2339.6,0.08548076]
[1725978819597,1.23225438,2340.6,2339.5,2.4036]
[1725978819807,3.2937923,2340.5,2339.5,2.4036]
[1725978819964,2.76275842,2340.4,2339.5,2.4036]
[1725978820159,0.60565507,2340.3,2339.5,2.4036]
[1725978820386,0.09703759,2340.2,2339.5,2.4036]
[1725978821176,0.09703759,2340.2,2339.3,0.02542448]
[1725978821374,0.09703759,2340.2,2339.3,0.11091114]
[1725978821571,0.09703759,2340.2,2339.3,3.02542448]
[1725978821780,0.09703759,2340.2,2339.3,0.02542448]
[1725978821958,0.8895923,2339.9,2339.3,0.02542448]
[1725978822163,2.98583775,2339.8,2339.3,0.02542448]
[1725978822392,12.38967394,2339.7,2339.3,0.02542448]
[1725978822612,0.8895923,2339.5,2339.3,0.02542448]
[1725978822767,0.98662989,2339.4,2339.3,0.02542448]
[1725978823172,2.76615152,2339.4,2339.3,0.02542448]
[1725978823382,2.46211076,2339.4,2339.3,0.02542448]
[1725978823602,0.68518418,2339.4,2339.3,0.02542448]
[1725978823788,1.57708793,2339.4,2339.3,0.02542448]
[1725978824106,3.35401451,2339.4,2339.3,0.02542448]
[1725978824308,0.68518418,2339.4,2339.3,0.02542448]
[1725978824907,1.39787971,2339.4,2339.3,0.02542448]
[1725978825604,1.39772597,2339.4,2339.3,0.02542448]
[1725978826106,0.68518418,2339.4,2339.3,0.02542448]
[1725978826471,0.09703759,2339.4,2339.3,0.02542448]
[1725978827070,0.09703759,2339.6,2339.3,0.02542448]
[1725978828183,2.3784,2339.5,2339.3,0.02542448]
[1725978828512,0.09703759,2339.4,2339.3,0.02542448]
[1725978828717,0.43377172,2339.4,2339.3,0.02542448]
[1725978829043,6.20719294,2339.4,2339.3,0.00100495]
[1725978829241,15.6939573,2339.4,2339.3,0.00100495]
[1725978829414,11.4193573,2339.4,2339.3,0.00100495]
[1725978829598,11.42149752,2339.4,2339.3,0.00100495]
[1725978829999,11.42144733,2339.4,2339.3,0.00100495]
[1725978830251,6.09416723,2339.4,2339.3,0.00100495]
[1725978830545,4.14157617,2339.4,2339.3,0.00100495]
[1725978830752,1.14330565,2339.4,2339.3,0.00100495]
[1725978830953,0.09703759,2339.4,2339.3,0.00100495]
[1725978831448,0.09703759,2339.6,2339.3,0.00100495]
[1725978833719,2.2886,2339.5,2339.3,0.00100495]
[1725978833908,0.80640324,2339.4,2339.3,0.00100495]
[1725978834121,2.54244817,2339.4,2339.3,0.00100495]
[1725978834318,5.54244817,2339.4,2339.3,0.00100495]
[1725978834557,6.251727,2339.4,2339.3,0.00100495]
[1725978834857,4.99244817,2339.4,2339.3,0.00100495]
[1725978835407,12.69836579,2339.4,2339.3,0.00100495]
[1725978835613,16.08210238,2339.4,2339.3,0.00100495]
[1725978835965,16.97249797,2339.4,2339.3,0.00100495]
[1725978836121,20.1337189,2339.4,2339.3,0.00100495]
[1725978836450,21.02388039,2339.4,2339.3,0.00100495]
[1725978837501,21.02359138,2339.4,2339.3,0.00100495]
[1725978837757,25.74494494,2339.4,2339.3,3.686e-05]
[1725978837915,25.82582972,2339.4,2339.3,3.686e-05]
[1725978838118,25.74301949,2339.4,2339.3,3.686e-05]
[1725978838342,32.44361949,2339.4,2339.3,3.686e-05]
[1725978838656,4.05161652,2339.1,2338.7,0.0331534]
[1725978838952,3.09703759,2339.0,2338.7,0.0331534]
[1725978839161,0.09703759,2339.0,2338.7,0.0331534]
[1725978840251,0.09703759,2339.3,2338.7,0.0331534]
[1725978840465,0.09703759,2339.2,2338.7,0.0331534]
[1725978841027,4.05161652,2339.1,2338.7,0.0331534]
[1725978841330,4.05161652,2338.8,2338.7,0.0331534]
[1725978841525,10.83084411,2338.8,2338.7,0.0331534]
[1725978841829,18.17147317,2338.8,2338.7,0.0331534]
[1725978842028,18.72144763,2338.8,2338.7,0.0331534]
[1725978842263,25.43994321,2338.8,2338.7,0.0331534]
[1725978842472,25.43994321,2338.8,2338.0,0.0331534]
[1725978842473,6.54601652,2338.1,2338.0,0.0331534]
[1725978842639,7.62829217,2338.1,2338.0,0.0331534]
[1725978843575,8.17829217,2338.1,2338.0,0.0121225]
[1725978844229,4.14865411,2338.4,2338.0,0.0121225]
[1725978844575,3.0,2338.3,2338.0,0.0121225]
[1725978844782,0.09703759,2338.2,2338.0,0.0121225]
[1725978845429,0.09703759,2338.6,2338.1,2.4468]
[1725978845633,0.09703759,2338.9,2338.2,0.31993]
[1725978845831,5.38545047,2339.6,2338.4,2.4468]
[1725978845832,0.09703759,2339.3,2338.4,2.4468]
[1725978846057,0.09703759,2339.2,2338.4,2.4468]
[1725978846432,0.09703759,2339.2,2338.4,2.4589225]
[1725978847064,0.09703759,2339.4,2338.4,2.4589225]
[1725978847275,0.5738382,2339.4,2338.5,0.63996224]
[1725978847978,0.09703759,2339.4,2338.5,0.63996224]
[1725978848178,0.09703759,2339.6,2338.7,2.0]
[1725978848378,2.21821615,2340.5,2338.5,3.63996224]
[1725978848379,0.09703759,2340.1,2339.1,2.3718]
[1725978848675,0.09703759,2340.1,2339.2,0.08548724]
[1725978848979,0.09703759,2340.1,2339.1,5.3718]
[1725978849185,0.09703759,2340.1,2339.1,2.3718]
[1725978849473,4.33777527,2340.0,2339.1,2.3718]
[1725978849685,3.54051888,2339.9,2338.7,2.433]
[1725978849974,4.33777527,2339.7,2338.7,2.433]
[1725978850178,0.09703759,2339.6,2338.7,2.433]
[1725978850340,6.66587527,2339.4,2338.3,2.433]
[1725978850543,0.09703759,2339.3,2338.3,2.433]
[1725978850756,0.09703759,2339.2,2338.3,2.433]
[1725978851879,0.09703759,2339.2,2338.0,2.35091972]
[1725978852680,0.09703759,2339.2,2338.5,2.2654]
[1725978852859,0.09703759,2339.5,2338.6,0.08551192]
[1725978853056,0.73283465,2339.5,2338.6,0.31326417]
[1725978853289,0.73283465,2339.5,2338.6,0.22775225]
[1725978853583,4.33777527,2339.3,2338.1,2.2654]
[1725978853888,0.09703759,2339.2,2338.1,2.2654]
[1725978854173,0.09703759,2339.2,2338.2,0.08553425]
[1725978855194,0.09703759,2339.4,2338.3,2.0]
[1725978855379,0.09703759,2339.4,2338.2,3.0]
[1725978855380,0.87516325,2339.4,2338.2,3.0]
[1725978855553,4.33777527,2339.2,2338.1,2.2654]
[1725978855748,3.09703759,2339.1,2338.1,2.2654]
[1725978856234,0.09703759,2339.1,2338.1,5.35093391]
[1725978856435,0.09703759,2339.1,2338.1,5.2654]
[1725978856737,0.09703759,2339.1,2338.1,2.2654]
[1725978856969,1.08550888,2339.1,2338.1,2.2654]
[1725978857496,1.08550888,2339.1,2338.0,7.38]
[1725978857650,0.70843154,2339.0,2338.0,7.38]
[1725978857841,0.09703759,2338.9,2338.2,2.3075]
[1725978859054,0.09703759,2338.9,2338.0,7.38]
[1725978859271,3.31522263,2338.8,2338.0,7.38]
[1725978859436,0.09703759,2338.7,2338.0,7.38]
[1725978859643,0.34934135,2338.7,2338.0,7.38]
[1725978859870,0.34934135,2338.7,2337.6,2.5343587]
[1725978859871,4.33777527,2338.5,2337.6,2.5343587]
[1725978860040,4.43481286,2338.5,2337.6,2.5343587]
[1725978860235,7.0987108,2338.5,2337.6,2.5343587]
[1725978860435,7.0987108,2338.5,2338.4,0.00044454]
[1725978860653,8.14504018,2338.5,2338.4,0.00044454]
[1725978861180,8.59014995,2338.5,2338.4,0.00044454]
[1725978861480,3.81026163,2338.5,2338.4,0.00044454]
[1725978862340,2.92181223,2338.5,2338.4,0.00044454]
[1725978862541,1.87548285,2338.5,2338.4,0.00044454]
[1725978862780,3.21225076,2338.5,2338.4,0.00044454]
[1725978863087,3.21226882,2338.5,2338.4,0.00044454]
[1725978863238,2.76653687,2338.5,2338.4,0.00044454]
[1725978863445,3.42560843,2338.5,2338.4,0.00044454]
[1725978863644,1.46660405,2338.5,2338.4,0.00044454]
[1725978863866,2.76689668,2338.5,2338.4,0.00044454]
[1725978864064,1.70055605,2338.5,2338.4,0.00044454]
[1725978864383,0.09703759,2338.6,2338.4,0.00044454]
[1725978864742,1.33831922,2339.0,2338.4,0.00044454]
[1725978864743,0.09703759,2338.8,2338.4,0.00044454]
[1725978865738,0.09703759,2338.9,2338.5,2.3419]
[1725978866338,0.09703759,2338.9,2338.5,2.57613445]
[1725978867221,0.98962486,2338.9,2338.5,2.57613445]
[1725978867606,0.71228857,2338.8,2338.5,2.57613445]
[1725978867808,0.98962486,2338.9,2338.5,2.57613445]
[1725978868026,0.09703759,2338.9,2338.5,2.57613445]
[1725978868193,0.09703759,2338.9,2338.5,2.3419]
[1725978868194,0.89258727,2338.8,2338.5,2.3419]
[1725978868532,0.89258727,2338.8,2338.4,0.00044454]
[1725978868533,0.98962486,2338.7,2338.4,0.00044454]
[1725978868681,0.71243336,2338.6,2338.4,0.00044454]
[1725978868881,0.98962486,2338.7,2338.4,0.00044454]
[1725978869130,0.98962486,2338.8,2338.4,0.00044454]
[1725978869431,0.09703759,2338.8,2338.4,0.00044454]
[1725978869739,1.60496046,2338.7,2338.4,0.00044454]
[1725978869881,0.89258727,2338.8,2338.4,0.00044454]
[1725978870453,2.67357605,2338.8,2338.4,0.00044454]
[1725978870584,0.09703759,2338.7,2338.4,0.00044454]
[1725978870983,0.98962486,2338.7,2338.4,0.00044454]
[1725978871178,0.09703759,2338.7,2338.4,0.00044454]
[1725978871681,0.98962486,2338.7,2338.4,0.00044454]
[1725978871878,1.40026379,2338.7,2338.4,0.00044454]
[1725978872091,0.71250812,2338.6,2338.4,0.00044454]
[1725978872292,0.09703759,2338.5,2338.4,0.00044454]
[1725978872496,1.3032262,2338.7,2338.4,0.00044454]
[1725978872497,0.98962486,2338.7,2338.4,0.00044454]
[1725978872714,0.89258727,2338.8,2338.4,0.00044454]
[1725978872897,0.98962486,2338.9,2338.4,0.00044454]
[1725978873194,0.98962486,2338.9,2338.5,2.4523]
[1725978873432,0.98962486,2338.9,2338.5,2.70497702]
[1725978873636,3.11676448,2339.1,2338.6,0.08551687]
[1725978873637,0.89258727,2339.0,2338.6,0.08551687]
[1725978873798,0.89258727,2339.2,2338.7,2.4293]
[1725978874125,0.09703759,2339.3,2338.8,0.33698392]
[1725978874126,0.89258727,2339.3,2338.8,0.33698392]
[1725978874345,0.09703759,2339.2,2338.8,0.33698392]
[1725978874640,0.09703759,2339.2,2338.7,2.4293]
[1725978874641,2.77077008,2339.2,2338.7,2.4293]
[1725978874798,0.98962486,2339.2,2338.7,2.4293]
[1725978874997,0.98962486,2339.2,2338.7,2.51480733]
[1725978875231,0.98962486,2339.2,2338.7,2.4293]
[1725978875443,0.89258727,2339.1,2338.7,2.4293]
[1725978875602,0.09703759,2339.0,2338.7,2.4293]
[1725978876746,0.09703759,2339.0,2338.6,3.0]
[1725978876905,0.09703759,2339.0,2338.4,2.26314454]
[1725978876906,0.98962486,2339.0,2338.4,2.26314454]
[1725978877102,0.89258727,2339.0,2338.5,0.08552173]
[1725978877518,1.60503412,2339.0,2338.5,0.08552173]
[1725978877743,0.98962486,2339.1,2338.5,0.08552173]
[1725978877917,0.71245497,2339.0,2338.5,0.08552173]
[1725978878116,0.71245497,2339.0,2338.5,0.32038836]
[1725978879048,1.96131951,2339.1,2338.6,2.3543]
[1725978879251,0.89258727,2339.2,2338.7,0.08550243]
[1725978879544,0.89258727,2339.2,2338.7,0.55297127]
[1725978879545,2.67359749,2339.2,2338.7,0.55297127]
[1725978879750,0.89258727,2339.2,2338.8,0.08550218]
[1725978880047,0.09703759,2339.1,2338.7,3.0]
[1725978880201,2.77064956,2339.1,2338.6,2.3543]
[1725978880403,0.89258727,2338.9,2338.4,0.00044454]
[1725978880703,0.89258727,2338.6,2338.4,0.00044454]
[1725978881119,0.98962486,2338.7,2338.4,0.00044454]
[1725978881318,0.09703759,2338.7,2338.4,0.00044454]
[1725978881531,1.22241927,2338.7,2338.4,0.00044454]
[1725978881732,0.71265991,2338.6,2338.4,0.00044454]
[1725978881931,0.09703759,2338.7,2338.4,0.00044454]
[1725978882719,0.98962486,2338.7,2338.4,0.00044454]
[1725978882936,0.09703759,2338.7,2338.4,0.00044454]
[1725978883240,0.89258727,2338.5,2338.4,0.00044454]
[1725978883552,0.09703759,2338.5,2338.4,0.00044454]
[1725978883705,9.59127291,2338.5,2338.4,0.00044454]
[1725978883904,11.82069876,2338.5,2337.7,7.38]
[1725978884157,0.89501615,2338.1,2337.6,0.0389587]
[1725978884306,2.06129957,2338.0,2337.6,0.0389587]
[1725978884505,0.09703759,2338.0,2337.6,0.0389587]
[1725978884748,1.22551154,2338.0,2337.6,0.0389587]
[1725978884956,0.71277498,2337.9,2337.6,0.0389587]
[1725978885255,0.09703759,2337.8,2337.6,0.0389587]
[1725978885548,0.09703759,2338.0,2337.6,0.0389587]
[1725978885774,0.32079163,2338.0,2337.6,0.0389587]
[1725978886134,1.21580778,2338.0,2337.6,0.0389587]
[1725978886331,0.32079163,2338.0,2337.6,0.0389587]
[1725978886941,0.09703759,2338.0,2337.7,2.3978]
[1725978887152,1.34252423,2338.3,2337.7,2.3978]
[1725978887153,0.99205374,2338.2,2337.7,2.3978]
[1725978887366,0.09703759,2338.2,2337.7,2.3978]
[1725978887580,0.09703759,2338.2,2337.7,2.65003168]
[1725978887730,2.77344982,2338.2,2337.7,2.65003168]
[1725978888083,0.99205374,2338.2,2337.7,2.3978]
[1725978888225,0.09703759,2338.2,2337.7,2.3978]
[1725978888935,0.89501615,2338.1,2337.6,0.0389587]
[1725978889266,1.22551154,2338.0,2337.6,0.0389587]
[1725978889995,0.89501615,2337.9,2337.6,0.0389587]
[1725978890296,0.09703759,2337.8,2337.6,0.0389587]
[1725978891400,0.99205374,2337.9,2337.6,0.0389587]
[1725978891692,1.40451477,2337.9,2337.6,0.0389587]
[1725978891989,0.99205374,2337.9,2337.6,0.0389587]
[1725978892292,0.89501615,2337.9,2337.7,2.4328]
[1725978892452,0.89501615,2338.1,2337.7,2.4328]
[1725978892647,0.89501615,2338.1,2337.7,2.68853167]
[1725978892994,1.6068761,2338.1,2337.7,2.68853167]
[1725978893296,0.7118979,2338.0,2337.8,0.08554407]
[1725978893452,0.89501615,2338.1,2337.8,0.08554407]
[1725978893453,0.89501615,2338.1,2337.8,0.08554058]
[1725978894052,0.89501615,2338.1,2337.7,2.4328]
[1725978894053,1.60677173,2338.1,2337.7,2.51834001]
[1725978894360,0.89501615,2338.2,2337.9,2.284]
[1725978894559,0.89501615,2338.3,2338.0,0.08552936]
[1725978894780,0.89501615,2338.3,2338.0,0.33103666]
[1725978894967,0.89501615,2338.3,2338.0,3.08552936]
[1725978895290,0.89501615,2338.6,2338.0,0.08552936]
[1725978895588,0.99205374,2338.6,2338.0,0.6224823]
[1725978895885,0.89501615,2338.6,2338.0,3.6224823]
[1725978896098,1.60728815,2338.6,2338.0,3.08552936]
[1725978896253,1.60728815,2338.6,2338.0,0.08552936]
[1725978896452,1.60728815,2338.6,2338.0,0.6224823]
[1725978896650,1.60728815,2338.6,2338.0,3.6224823]
[1725978896864,1.60728815,2338.5,2338.0,3.6224823]
[1725978897068,0.89501615,2338.5,2338.0,3.08552936]
[1725978897270,0.99205374,2338.5,2338.1,3.0]
[1725978897501,0.89501615,2338.4,2337.9,2.284]
[1725978897733,0.09703759,2338.3,2337.9,2.284]
[1725978898208,0.09703759,2338.4,2337.9,2.284]
[1725978898409,0.71234874,2338.4,2337.9,2.36953297]
[1725978898619,0.89501615,2338.4,2337.9,2.36953297]
[1725978898773,0.89501615,2338.5,2337.9,2.36953297]
[1725978898973,1.2082718,2338.5,2337.9,2.36953297]
[1725978899197,0.89501615,2338.5,2337.9,2.36953297]
[1725978899369,0.99205374,2338.6,2337.9,2.36953297]
[1725978899569,0.7123205,2338.5,2337.9,2.36953297]
[1725978899773,1.60733665,2338.5,2337.9,2.36953297]
[1725978899967,0.89501615,2338.6,2338.0,2.5369533]
[1725978900320,0.89501615,2338.7,2338.1,3.0855223]
[1725978900518,0.99205374,2338.7,2338.1,3.88472316]
[1725978900874,0.99205374,2338.8,2338.1,3.88472316]
[1725978901110,0.71213424,2338.7,2338.2,0.58847232]
[1725978901416,0.99205374,2338.7,2338.1,3.0]
[1725978901615,0.89501615,2338.6,2338.2,0.08552228]
[1725978901789,0.89501615,2338.6,2337.9,2.284]
[1725978901790,1.60715039,2338.6,2337.9,2.284]
[1725978902112,2.77296389,2338.5,2337.9,2.36953544]
[1725978902323,2.67587833,2338.4,2337.9,2.36953544]
[1725978902473,0.89501615,2338.4,2337.9,2.36953544]
[1725978902669,0.50949862,2338.6,2337.9,2.36953544]
[1725978902670,0.89501615,2338.6,2338.0,2.0]
[1725978902907,2.33288831,2338.9,2338.1,2.5784171]
[1725978902908,0.89501615,2338.9,2338.1,2.5784171]
[1725978903121,1.60755306,2338.9,2338.1,3.01537064]
[1725978903427,0.99205374,2339.2,2338.8,2.383]
[1725978903633,0.99205374,2339.0,2338.5,2.383]
[1725978903922,0.99205374,2339.0,2338.4,7.38]
[1725978903923,0.89501615,2338.6,2338.4,7.38]
[1725978904116,0.89501615,2338.6,2337.8,2.383]
[1725978904117,1.43956182,2338.5,2337.8,9.763]
[1725978904332,0.89405654,2338.2,2337.4,2.4427]
[1725978904556,0.09703759,2338.1,2337.4,2.4427]
[1725978904741,0.99109413,2338.1,2337.4,2.52825623]
[1725978904943,0.99109413,2338.2,2337.6,0.12451479]
[1725978905173,1.34108481,2338.3,2337.6,0.11851969]
[1725978905174,0.89405654,2338.3,2337.6,0.11851969]
[1725978905317,0.09703759,2338.2,2337.6,0.11851969]
[1725978905624,1.29552316,2338.2,2337.6,0.0329636]
[1725978905826,1.29552316,2338.2,2337.6,0.10703461]
[1725978906159,0.89405654,2338.2,2337.7,2.3227]
[1725978906326,0.89405654,2338.2,2337.8,2.08553772]
[1725978906535,0.89405654,2338.2,2337.8,5.08553772]
[1725978906868,0.89405654,2338.4,2337.8,5.08553772]
[1725978907063,1.34108481,2338.5,2337.9,0.74082377]
[1725978907217,0.09703759,2338.5,2337.9,3.0]
[1725978907423,0.89405654,2338.6,2338.0,0.08553628]
[1725978907731,0.89405654,2338.6,2338.1,2.365]
[1725978907944,0.89405654,2338.6,2338.2,0.08552637]
[1725978908265,0.89405654,2338.6,2338.2,0.09413667]
[1725978908758,0.89405654,2338.6,2338.5,2.431]
[1725978908913,0.89405654,2338.6,2338.5,5.95961235]
[1725978909266,1.34108481,2338.7,2338.5,7.57965774]
[1725978909564,1.79003231,2338.8,2338.7,2.0]
[1725978909773,5.09915084,2340.4,2339.2,3.7231]
[1725978910059,5.09915084,2340.4,2339.3,1.7231]
[1725978910232,0.09703759,2340.3,2339.5,2.0]
[1725978910429,0.09703759,2340.3,2339.6,1.80857307]
[1725978910948,0.09703759,2340.3,2339.6,4.80857307]
[1725978912985,5.09915084,2340.4,2339.6,5.35857307]
[1725978913115,5.09915084,2340.4,2339.6,5.35855672]
[1725978913317,5.09915084,2340.4,2339.6,6.55565472]
[1725978913543,0.09703759,2340.3,2339.6,6.00565472]
[1725978914268,0.09703759,2340.3,2339.6,0.08546962]
[1725978914472,0.09703759,2340.3,2339.6,2.57656962]
[1725978914765,0.09703759,2340.3,2339.6,2.57657022]
[1725978915451,0.09703759,2340.3,2339.6,5.57657022]
[1725978915949,5.09915084,2340.4,2339.6,5.4911]
[1725978916120,5.09915084,2340.4,2339.6,6.24021]
[1725978916526,5.09915084,2340.4,2339.6,6.32567673]
[1725978918051,0.0243533,2340.7,2340.1,2.0]
[1725978918264,0.0243533,2340.7,2340.1,4.37313714]
[1725978918563,0.0243533,2340.7,2340.1,8.79390349]
[1725978919677,0.0243533,2340.7,2340.1,8.15847131]
[1725978919825,0.0243533,2340.7,2340.1,4.37314259]
[1725978920861,0.0243533,2340.7,2340.1,2.0]
[1725978921525,0.0243533,2340.7,2339.9,3.0]
[1725978921721,0.0243533,2340.7,2340.0,0.085449]
[1725978921950,0.0243533,2340.7,2340.0,0.8298039]
[1725978922635,0.0243533,2340.7,2340.0,0.085449]
[1725978922865,0.0243533,2340.7,2339.9,3.0]
[1725978923596,2.4662,2340.5,2339.6,0.74911]
[1725978923891,0.09703759,2340.4,2339.8,0.08545411]
[1725978924690,0.09703759,2340.4,2339.6,0.74911]
[1725978924691,0.09703759,2340.4,2339.7,0.08546611]
[1725978924988,0.0243533,2340.7,2339.8,2.0]
[1725978925189,0.0243533,2340.7,2340.1,2.0]
[1725978925397,0.0243533,2340.7,2340.1,8.84772055]
[1725978925596,0.0243533,2340.7,2340.1,12.97049979]
[1725978925805,0.0243533,2340.7,2340.1,13.69477053]
[1725978926288,0.0243533,2340.7,2340.1,13.60932596]
[1725978927485,0.0243533,2340.7,2340.1,13.05932596]
[1725978928353,0.0243533,2340.7,2340.1,8.72474998]
[1725978928548,0.0243533,2340.7,2340.1,5.0]
[1725978928787,0.0243533,2340.7,2340.1,5.08544704]
[1725978928988,0.0243533,2340.7,2340.1,2.0]
[1725978929197,0.0243533,2340.7,2339.7,0.30057851]
[1725978929198,0.12139089,2340.7,2339.8,2.0]
[1725978929499,0.12139089,2340.7,2339.9,0.08545687]
[1725978929985,0.12139089,2340.7,2339.8,2.23005785]
[1725978930157,2.348,2340.3,2339.9,0.08546453]
[1725978930500,0.12139089,2340.7,2339.6,0.08546402]
[1725978930501,2.3723533,2340.7,2339.6,0.08546402]
[1725978930791,0.09703759,2340.6,2339.6,1.12288416]
[1725978931105,2.3723533,2340.7,2339.8,2.0]
[1725978931256,2.3723533,2340.7,2339.9,0.08544763]
[1725978931748,0.0243533,2340.7,2339.9,0.08544763]
[1725978932700,0.0243533,2340.7,2340.1,4.3117]
[1725978932999,0.0243533,2340.7,2340.1,7.83684627]
[1725978933505,0.0243533,2340.7,2340.1,5.52514627]
[1725978933653,0.0243533,2340.7,2339.7,2.4905]
[1725978933654,2.4687,2340.4,2339.7,2.0]
[1725978933853,0.09703759,2340.3,2339.5,0.25667392]
[1725978934283,0.09703759,2340.3,2339.5,0.73139131]
[1725978934689,0.12139089,2340.2,2339.5,0.25667392]
[1725978934865,2.3551,2340.1,2339.5,0.08546492]
[1725978935061,0.09703759,2340.0,2339.5,0.08546492]
[1725978935395,2.3551,2340.1,2339.5,0.08546492]
[1725978936198,2.3551,2340.1,2339.5,0.35086931]
[1725978937009,0.09703759,2340.0,2339.5,0.08547339]
[1725978938161,2.4298,2339.9,2338.9,7.38]
[1725978938374,2.4298,2339.9,2338.7,1.12327703]
[1725978938375,2.4288,2339.7,2338.7,1.12327703]